[Event "VI Sunway Sitges Open 2019"]
[Site "Sitges"]
[Date "2019.12.13"]
[Round "1.44"]
[White "Harsha Bharathakoti"]
[Black "Natarajan C"]
[Result "1-0"]
[ECO "A90"]
[WhiteElo "2523"]
[BlackElo "2157"]
[Annotator "ChessBase"]
[PlyCount "129"]
[EventDate "2019.12.13"]
[EventType "swiss"]
[EventCountry "ESP"]
[SourceTitle "playchess.com"]
[Source "ChessBase"]
[SourceQuality "1"]
[TimeControl "40/5400+30:1800+30"]

1. d4 {[%emt 0:00:00]} e6 {[%emt 0:02:44]} 2. c4 {[%emt 0:00:11]} f5 {[%emt 0:00:36]} 3. g3 {[%emt 0:00:46]} c6 {[%emt 0:01:26]} 4. Bg2 {[%emt 0:01:41]} d5 {[%emt 0:00:35]} 5. Nc3 {[%emt 0:01:58]} Nf6 {[%emt 0:01:41]} 6. Nh3 {[%emt 0:00:30]} Bd6 {[%emt 0:05:11]} 7. Qb3 {[%emt 0:03:40]} O-O {[%emt 0:08:16]} 8. O-O {[%emt 0:00:09]} Kh8 {[%emt 0:00:13]} 9. Bf4 {[%emt 0:02:32]} a5 {[%emt 0:03:49]} 10. Rad1 {[%emt 0:12:35]} a4 {[%emt 0:08:43]} 11. Qc2 {[%emt 0:01:17]} a3 {[%emt 0:05:15]} 12. b3 {[%emt 0:05:38]} Na6 {[%emt 0:02:39]} 13. Bxd6 {[%emt 0:16:13]} Qxd6 {[%emt 0:00:10]} 14. c5 {[%emt 0:00:18]} Qe7 {[%emt 0:02:24]} 15. Na4 {[%emt 0:00:31]} e5 {[%emt 0:01:45]} 16. dxe5 {[%emt 0:16:08]} Qxe5 {[%emt 0:01:13]} 17. Nf4 {[%emt 0:00:55]} Nb4 {[%emt 0:14:53]} 18. Qd2 {[%emt 0:00:48]} Na6 {[%emt 0:00:06]} 19. Nd3 {[%emt 0:02:46]} Qe7 {[%emt 0:01:01]} 20. e3 {[%emt 0:03:53]} Nc7 {[%emt 0:06:52]} 21. Qc1 {[%emt 0:00:56]} Nb5 {[%emt 0:00:26]} 22. Nc3 {[%emt 0:00:58]} Nxc3 {[%emt 0:00:57]} 23. Qxc3 {[%emt 0:00:04]} Ne4 {[%emt 0:01:11]} 24. Qd4 {[%emt 0:01:40]} Qf6 {[%emt 0:08:18]} 25. Rc1 {[%emt 0:02:03]} Ng5 {[%emt 0:04:36]} 26. Rfd1 {[%emt 0:06:05]} Qxd4 {[%emt 0:05:45]} 27. exd4 {[%emt 0:00:03]} Ne6 {[%emt 0:00:07]} 28. Nf4 {[%emt 0:09:35]} g5 {[%emt 0:02:20]} 29. Nxe6 {[%emt 0:00:40]} Bxe6 {[%emt 0:00:01]} 30. Re1 {[%emt 0:00:34]} Rf6 {[%emt 0:00:28]} 31. Re5 {[%emt 0:00:54]} Rg8 {[%emt 0:04:49]} 32. Rce1 {[%emt 0:00:29]} Rgg6 {[%emt 0:00:08]} 33. Bf1 {[%emt 0:02:58]} g4 {[%emt 0:03:59]} 34. b4 {[%emt 0:00:51]} Kg7 {[%emt 0:02:20]} 35. R1e3 {[%emt 0:01:13]} f4 {[%emt 0:00:02]} 36. gxf4 {[%emt 0:02:40]} Bf5 {[%emt 0:02:06]} 37. Re7+ {[%emt 0:01:37]} Rf7 {[%emt 0:00:10]} 38. Rxf7+ {[%emt 0:00:27]} Kxf7 {[%emt 0:00:06]} 39. Rxa3 {[%emt 0:00:17]} Re6 {[%emt 0:00:10]} 40. Re3 {[%emt 0:00:00]} Bc2 {[%emt 0:05:55]} 41. Kg2 {[%emt 0:07:07]} Be4+ {[%emt 0:04:46]} 42. Kg3 {[%emt 0:01:38]} h5 {[%emt 0:01:37]} 43. b5 {[%emt 0:04:02]} Kf6 {[%emt 0:00:23]} 44. a4 {[%emt 0:03:50]} Re8 {[%emt 0:07:27]} 45. Bg2 {[%emt 0:05:04]} Kf5 {[%emt 0:00:08]} 46. h4 {[%emt 0:03:05]} Ra8 {[%emt 0:00:31]} 47. bxc6 {[%emt 0:00:11]} bxc6 {[%emt 0:08:08]} 48. Ra3 {[%emt 0:05:46]} Bxg2 {[%emt 0:00:00]} 49. Kxg2 {[%emt 0:06:14]} Kxf4 {[%emt 0:00:00]} 50. a5 {[%emt 0:00:11]} Ke4 {[%emt 0:00:00]} 51. Ra4 {[%emt 0:02:02]} Kf4 {[%emt 0:05:41]} 52. a6 {[%emt 0:00:00]} Ra7 {[%emt 0:00:03]} 53. Kg1 {[%emt 0:00:00]} g3 {[%emt 0:00:49]} 54. Kg2 {[%emt 0:00:00]} gxf2 {[%emt 0:00:14]} 55. Kxf2 {[%emt 0:00:00]} Kg4 {[%emt 0:00:07]} 56. Ke3 {[%emt 0:00:00]} Re7+ {[%emt 0:00:15]} 57. Kd3 {[%emt 0:00:00]} Ra7 {[%emt 0:00:08]} 58. Kc3 {[%emt 0:00:00]} Ra8 {[%emt 0:02:01]} 59. a7 {[%emt 0:01:28]} Kxh4 {[%emt 0:00:15]} 60. Ra6 {[%emt 0:00:06]} Kg4 {[%emt 0:00:13]} 61. Kb4 {[%emt 0:00:07]} h4 {[%emt 0:02:08]} 62. Ka5 {[%emt 0:00:03]} h3 {[%emt 0:00:30]} 63. Kb6 {[%emt 0:00:03]} h2 {[%emt 0:00:25]} 64. Ra1 {[%emt 0:00:38]} Kf4 {[%emt 0:00:51]} 65. Kb7 {[%emt 0:00:00]} 1-0

[Event "VI Sunway Sitges Open 2019"]
[Site "Sitges"]
[Date "2019.12.13"]
[Round "1.45"]
[White "Machlik, Monika"]
[Black "Narciso Dublan, Marc"]
[Result "0-1"]
[ECO "D07"]
[WhiteElo "2156"]
[BlackElo "2516"]
[Annotator "ChessBase"]
[PlyCount "98"]
[EventDate "2019.12.13"]
[EventType "swiss"]
[EventCountry "ESP"]
[SourceTitle "playchess.com"]
[Source "ChessBase"]
[SourceQuality "1"]
[TimeControl "40/5400+30:1800+30"]

1. d4 {[%emt 0:00:00]} d5 {[%emt 0:00:00]} 2. c4 {[%emt 0:00:00]} Nc6 {[%emt 0:00:00]} 3. Nc3 {[%emt 0:00:58]} Nf6 {[%emt 0:01:05]} 4. cxd5 {[%emt 0:13:41]} Nxd5 {[%emt 0:00:12]} 5. e4 {[%emt 0:00:32]} Nxc3 {[%emt 0:00:11]} 6. bxc3 {[%emt 0:00:02]} e5 {[%emt 0:00:09]} 7. d5 {[%emt 0:03:09]} Nb8 {[%emt 0:00:55]} 8. Nf3 {[%emt 0:01:32]} Bd6 {[%emt 0:00:38]} 9. Be2 {[%emt 0:01:52]} O-O {[%emt 0:00:25]} 10. O-O {[%emt 0:00:09]} Nd7 {[%emt 0:01:19]} 11. Be3 {[%emt 0:05:16]} Qe7 {[%emt 0:03:18]} 12. c4 {[%emt 0:09:43]} Nc5 {[%emt 0:01:51]} 13. Nd2 {[%emt 0:00:20]} g6 {[%emt 0:22:47]} 14. f3 {[%emt 0:05:40]} f5 {[%emt 0:01:34]} 15. Qc2 {[%emt 0:02:59]} Bd7 {[%emt 0:08:27]} 16. Kh1 {[%emt 0:11:05]} b6 {[%emt 0:10:41]} 17. Rad1 {[%emt 0:07:17]} Rf7 {[%emt 0:04:46]} 18. Nb3 {[%emt 0:02:09]} Ba4 {[%emt 0:02:16]} 19. Bd3 {[%emt 0:05:35]} Raf8 {[%emt 0:10:30]} 20. Bh6 {[%emt 0:09:40]} Re8 {[%emt 0:00:15]} 21. Be3 {[%emt 0:00:55]} Qf8 {[%emt 0:04:14]} 22. Qb1 {[%emt 0:02:03]} Bxb3 {[%emt 0:05:39]} 23. axb3 {[%emt 0:00:15]} a5 {[%emt 0:00:04]} 24. exf5 {[%emt 0:08:02]} gxf5 {[%emt 0:00:13]} 25. f4 {[%emt 0:00:21]} e4 {[%emt 0:01:26]} 26. Be2 {[%emt 0:00:14]} Qh6 {[%emt 0:00:17]} 27. Qc2 {[%emt 0:03:24]} Rg7 {[%emt 0:01:01]} 28. Rb1 {[%emt 0:01:49]} Kf7 {[%emt 0:02:17]} 29. Qd2 {[%emt 0:01:42]} Reg8 {[%emt 0:04:30]} 30. Rf2 {[%emt 0:01:24]} Qh4 {[%emt 0:02:21]} 31. Bf1 {[%emt 0:02:07]} Rg6 {[%emt 0:01:11]} 32. Bd4 {[%emt 0:01:33]} Rh6 {[%emt 0:02:59]} 33. h3 {[%emt 0:00:05]} Rg3 {[%emt 0:00:31]} 34. b4 {[%emt 0:00:53]} axb4 {[%emt 0:01:45]} 35. Be5 {[%emt 0:00:23]} e3 {[%emt 0:03:08]} 36. Qc2 {[%emt 0:00:31]} exf2 {[%emt 0:01:08]} 37. Qxf5+ {[%emt 0:00:01]} Rf6 {[%emt 0:00:07]} 38. Bxf6 {[%emt 0:00:35]} Qxf6 {[%emt 0:00:06]} 39. Qxh7+ {[%emt 0:00:21]} Rg7 {[%emt 0:00:34]} 40. Qh5+ {[%emt 0:00:00]} Qg6 {[%emt 0:00:00]} 41. Qxg6+ {[%emt 0:02:45]} Rxg6 {[%emt 0:01:26]} 42. f5 {[%emt 0:01:44]} Rg8 {[%emt 0:02:36]} 43. g4 {[%emt 0:00:26]} Ne4 {[%emt 0:01:48]} 44. Kg2 {[%emt 0:00:22]} Bc5 {[%emt 0:00:23]} 45. Bd3 {[%emt 0:01:12]} Re8 {[%emt 0:00:44]} 46. h4 {[%emt 0:00:42]} Nc3 {[%emt 0:01:10]} 47. Rh1 {[%emt 0:01:15]} Re1 {[%emt 0:07:04]} 48. Rf1 {[%emt 0:03:51]} Rxf1 {[%emt 0:01:28]} 49. Kxf1 {[%emt 0:00:07]} b3 {[%emt 0:00:01]} 0-1

[Event "VI Sunway Sitges Open 2019"]
[Site "Sitges"]
[Date "2019.12.13"]
[Round "1.46"]
[White "Aroshidze, Levan"]
[Black "Godbole, Atharva"]
[Result "1-0"]
[ECO "B90"]
[WhiteElo "2514"]
[BlackElo "2148"]
[Annotator "ChessBase"]
[PlyCount "79"]
[EventDate "2019.12.13"]
[EventType "swiss"]
[EventCountry "ESP"]
[SourceTitle "playchess.com"]
[Source "ChessBase"]
[SourceQuality "1"]
[TimeControl "40/5400+30:1800+30"]

1. e4 {[%emt 0:00:00]} c5 {[%emt 0:00:00]} 2. Nf3 {[%emt 0:00:00]} d6 {[%emt 0:00:13]} 3. d4 {[%emt 0:00:00]} cxd4 {[%emt 0:00:15]} 4. Nxd4 {[%emt 0:00:05]} Nf6 {[%emt 0:00:06]} 5. Nc3 {[%emt 0:00:13]} a6 {[%emt 0:00:08]} 6. f3 {[%emt 0:00:23]} e5 {[%emt 0:01:41]} 7. Nb3 {[%emt 0:00:12]} Be6 {[%emt 0:00:14]} 8. Be3 {[%emt 0:00:13]} Be7 {[%emt 0:00:44]} 9. Qd2 {[%emt 0:00:14]} Nbd7 {[%emt 0:01:15]} 10. g4 {[%emt 0:01:25]} O-O {[%emt 0:01:39]} 11. g5 {[%emt 0:04:56]} Nh5 {[%emt 0:00:34]} 12. O-O-O {[%emt 0:00:10]} Qc7 {[%emt 0:01:36]} 13. Kb1 {[%emt 0:01:59]} b5 {[%emt 0:02:10]} 14. Nd5 {[%emt 0:13:47]} Bxd5 {[%emt 0:00:15]} 15. exd5 {[%emt 0:00:13]} Nb6 {[%emt 0:02:28]} 16. Na5 {[%emt 0:01:47]} Nxd5 {[%emt 0:03:12]} 17. Qxd5 {[%emt 0:00:07]} Qxa5 {[%emt 0:00:05]} 18. Bd3 {[%emt 0:00:44]} g6 {[%emt 0:02:01]} 19. c4 {[%emt 0:16:31]} Rfb8 {[%emt 0:15:58]} 20. Be4 {[%emt 0:18:50]} Re8 {[%emt 0:09:59]} 21. cxb5 {[%emt 0:14:19]} axb5 {[%emt 0:03:38]} 22. Qb3 {[%emt 0:00:06]} Rac8 {[%emt 0:03:14]} 23. Rd5 {[%emt 0:03:29]} Rb8 {[%emt 0:03:15]} 24. Bd3 {[%emt 0:00:46]} Qa4 {[%emt 0:12:07]} 25. Bxb5 {[%emt 0:01:58]} Qxb3 {[%emt 0:00:06]} 26. axb3 {[%emt 0:00:04]} Rec8 {[%emt 0:01:24]} 27. Bc4 {[%emt 0:02:09]} Kg7 {[%emt 0:03:10]} 28. Ra5 {[%emt 0:00:23]} Rc7 {[%emt 0:02:09]} 29. Rd1 {[%emt 0:03:55]} f6 {[%emt 0:07:22]} 30. h4 {[%emt 0:00:37]} fxg5 {[%emt 0:01:02]} 31. Bxg5 {[%emt 0:00:59]} Nf6 {[%emt 0:00:51]} 32. f4 {[%emt 0:05:21]} e4 {[%emt 0:05:08]} 33. f5 {[%emt 0:02:38]} gxf5 {[%emt 0:12:41]} 34. Rxf5 {[%emt 0:02:49]} Rc5 {[%emt 0:03:47]} 35. Bxf6+ {[%emt 0:00:18]} Bxf6 {[%emt 0:00:19]} 36. Rg1+ {[%emt 0:00:04]} Kh8 {[%emt 0:00:23]} 37. Rxf6 {[%emt 0:00:07]} d5 {[%emt 0:00:06]} 38. Rf5 {[%emt 0:00:34]} Rd8 {[%emt 0:00:22]} 39. Rd1 {[%emt 0:00:52]} e3 {[%emt 0:00:43]} 40. Rfxd5 {[%emt 0:01:10]} 1-0

[Event "VI Sunway Sitges Open 2019"]
[Site "Sitges"]
[Date "2019.12.13"]
[Round "1.47"]
[White "Minko, Dmitry"]
[Black "Kelires, Andreas"]
[Result "0-1"]
[ECO "B94"]
[WhiteElo "2147"]
[BlackElo "2510"]
[Annotator "ChessBase"]
[PlyCount "48"]
[EventDate "2019.12.13"]
[EventType "swiss"]
[EventCountry "ESP"]
[SourceTitle "playchess.com"]
[Source "ChessBase"]
[SourceQuality "1"]
[TimeControl "40/5400+30:1800+30"]

1. e4 {[%emt 0:00:00]} c5 {[%emt 0:00:00]} 2. Nf3 {[%emt 0:00:00]} d6 {[%emt 0:00:00]} 3. d4 {[%emt 0:00:00]} cxd4 {[%emt 0:00:00]} 4. Nxd4 {[%emt 0:00:03]} Nf6 {[%emt 0:00:00]} 5. Nc3 {[%emt 0:00:10]} a6 {[%emt 0:00:00]} 6. Bg5 {[%emt 0:00:50]} Nbd7 {[%emt 0:01:04]} 7. Qe2 {[%emt 0:01:00]} Qa5 {[%emt 0:00:27]} 8. f4 {[%emt 0:06:22]} h6 {[%emt 0:01:19]} 9. Bh4 {[%emt 0:05:57]} e5 {[%emt 0:04:57]} 10. fxe5 {[%emt 0:01:25]} dxe5 {[%emt 0:02:32]} 11. Nb3 {[%emt 0:04:21]} Qc7 {[%emt 0:01:25]} 12. O-O-O {[%emt 0:02:20]} Be7 {[%emt 0:02:13]} 13. h3 {[%emt 0:08:48]} b5 {[%emt 0:06:44]} 14. Qe1 {[%emt 0:12:10]} Bb7 {[%emt 0:13:26]} 15. Nd5 {[%emt 0:13:00]} Nxd5 {[%emt 0:03:43]} 16. exd5 {[%emt 0:00:00]} Rc8 {[%emt 0:00:52]} 17. c3 {[%emt 0:00:00]} Bxh4 {[%emt 0:03:28]} 18. Qxh4 {[%emt 0:00:00]} O-O {[%emt 0:01:44]} 19. Kb1 {[%emt 0:00:00]} Nf6 {[%emt 0:03:45]} 20. d6 {[%emt 0:00:00]} Qb6 {[%emt 0:00:17]} 21. Bd3 {[%emt 0:04:52]} Rcd8 {[%emt 0:01:50]} 22. Qg3 {[%emt 0:03:06]} Rxd6 {[%emt 0:06:44]} 23. Qxe5 {[%emt 0:00:32]} Rfd8 {[%emt 0:07:32]} 24. Qe2 {[%emt 0:03:18]} Rxd3 {[%emt 0:00:25]} 0-1

[Event "VI Sunway Sitges Open 2019"]
[Site "Sitges"]
[Date "2019.12.13"]
[Round "1.49"]
[White "Kiremitciyan, Ari"]
[Black "Isaksson, Max"]
[Result "1-0"]
[ECO "A11"]
[WhiteElo "2270"]
[BlackElo "1713"]
[Annotator "NA"]
[PlyCount "38"]
[EventDate "2019.12.13"]
[EventType "swiss"]
[EventCountry "ESP"]
[SourceTitle "playchess.com"]
[Source "ChessBase"]
[SourceQuality "1"]
[TimeControl "40/5400+30:1800+30"]

1. Nf3 {[%emt 0:00:02]} d5 {[%emt 0:00:06]} 2. e3 {[%emt 0:01:27]} Nf6 {[%emt 0:00:39]} 3. c4 {[%emt 0:00:19]} c6 {[%emt 0:00:10]} 4. Nc3 {[%emt 0:00:54]} e6 {[%emt 0:00:06]} 5. b3 {[%emt 0:01:28]} Nbd7 {[%emt 0:00:50]} 6. Bb2 {[%emt 0:04:33]} Bd6 {[%emt 0:00:09]} 7. Qc2 {[%emt 0:00:37]} O-O {[%emt 0:00:13]} 8. Rg1 {[%emt 0:05:33]} b6 {[%emt 0:02:10]} 9. g4 {[%emt 0:06:42]} Bb7 {[%emt 0:01:48]} 10. g5 {[%emt 0:04:41]} Ne8 {[%emt 0:01:23]} 11. O-O-O {[%emt 0:13:30]} a5 {[%emt 0:00:52]} 12. h4 {[%emt 0:06:35]} Ba6 {[%emt 0:01:38]} 13. h5 {[%emt 0:04:06]} b5 {[%emt 0:04:42]} 14. Bd3 {[%emt 0:09:12]} g6 {[%emt 0:16:29]} 15. hxg6 {[%emt 0:01:47]} fxg6 {[%emt 0:01:58]} 16. Nd4 {[%emt 0:06:01]} bxc4 {[%emt 0:08:39]} 17. Bxg6 {[%emt 0:05:21]} Qe7 {[%emt 0:03:34]} 18. Nxc6 {[%emt 0:03:45]} Qg7 {[%emt 0:00:36]} 19. Nxd5 {[%emt 0:00:58]} Qxg6 {[%emt 0:02:58]} 1-0

[Event "VI Sunway Sitges Open 2019"]
[Site "Sitges"]
[Date "2019.12.13"]
[Round "1.50"]
[White "Zheng, Harry Z"]
[Black "Miroshnichenko, Pavel"]
[Result "0-1"]
[ECO "B06"]
[WhiteElo "1704"]
[BlackElo "2270"]
[Annotator "NA"]
[PlyCount "144"]
[EventDate "2019.12.13"]
[EventType "swiss"]
[EventCountry "ESP"]
[SourceTitle "playchess.com"]
[Source "ChessBase"]
[SourceQuality "1"]
[TimeControl "40/5400+30:1800+30"]

1. e4 {[%emt 0:00:00]} g6 {[%emt 0:00:00]} 2. d4 {[%emt 0:00:00]} Bg7 {[%emt 0:00:00]} 3. Nc3 {[%emt 0:00:00]} d6 {[%emt 0:00:00]} 4. Be3 {[%emt 0:00:11]} a6 {[%emt 0:01:07]} 5. Qd2 {[%emt 0:01:38]} b5 {[%emt 0:00:27]} 6. a3 {[%emt 0:10:49]} Bb7 {[%emt 0:00:30]} 7. f3 {[%emt 0:05:22]} Nd7 {[%emt 0:00:27]} 8. Nge2 {[%emt 0:07:45]} c5 {[%emt 0:06:35]} 9. dxc5 {[%emt 0:03:26]} dxc5 {[%emt 0:02:59]} 10. Nf4 {[%emt 0:03:02]} Ngf6 {[%emt 0:03:01]} 11. Be2 {[%emt 0:03:39]} O-O {[%emt 0:06:06]} 12. O-O {[%emt 0:02:20]} e6 {[%emt 0:03:55]} 13. Rfd1 {[%emt 0:04:07]} Qc7 {[%emt 0:05:20]} 14. Qd6 {[%emt 0:09:37]} Rfc8 {[%emt 0:01:18]} 15. Qxc7 {[%emt 0:06:49]} Rxc7 {[%emt 0:00:00]} 16. Nd3 {[%emt 0:07:54]} Nh5 {[%emt 0:02:36]} 17. g4 {[%emt 0:07:26]} Bd4 {[%emt 0:02:13]} 18. Kf2 {[%emt 0:04:24]} Ng7 {[%emt 0:01:59]} 19. Nf4 {[%emt 0:02:50]} g5 {[%emt 0:06:55]} 20. Ng2 {[%emt 0:02:11]} e5 {[%emt 0:01:24]} 21. h4 {[%emt 0:04:48]} h6 {[%emt 0:01:31]} 22. hxg5 {[%emt 0:01:03]} hxg5 {[%emt 0:00:02]} 23. Rh1 {[%emt 0:01:40]} Nb6 {[%emt 0:08:17]} 24. Rh2 {[%emt 0:01:26]} Ne6 {[%emt 0:00:51]} 25. Rh5 {[%emt 0:00:27]} Kg7 {[%emt 0:08:30]} 26. Rah1 {[%emt 0:01:26]} Rcc8 {[%emt 0:12:24]} 27. Kg3 {[%emt 0:02:18]} Rh8 {[%emt 0:07:47]} 28. Bxg5 {[%emt 0:00:53]} Rxh5 {[%emt 0:00:47]} 29. Rxh5 {[%emt 0:00:07]} Bxc3 {[%emt 0:03:30]} 30. bxc3 {[%emt 0:00:09]} Nxg5 {[%emt 0:00:58]} 31. Rxg5+ {[%emt 0:00:12]} Kf6 {[%emt 0:00:11]} 32. Rh5 {[%emt 0:01:50]} Na4 {[%emt 0:00:24]} 33. c4 {[%emt 0:00:23]} b4 {[%emt 0:02:55]} 34. axb4 {[%emt 0:00:15]} cxb4 {[%emt 0:00:05]} 35. Ne3 {[%emt 0:00:06]} Nc5 {[%emt 0:04:24]} 36. Nd5+ {[%emt 0:02:27]} Bxd5 {[%emt 0:00:57]} 37. exd5 {[%emt 0:00:39]} a5 {[%emt 0:00:58]} 38. Rh1 {[%emt 0:03:27]} a4 {[%emt 0:00:23]} 39. Ra1 {[%emt 0:00:28]} a3 {[%emt 0:00:24]} 40. Bd1 {[%emt 0:00:00]} Ke7 {[%emt 0:00:00]} 41. g5 {[%emt 0:01:29]} Kd6 {[%emt 0:04:01]} 42. Kg4 {[%emt 0:00:40]} Nd7 {[%emt 0:02:05]} 43. Kf5 {[%emt 0:01:17]} Kc5 {[%emt 0:00:51]} 44. Be2 {[%emt 0:00:07]} Kd4 {[%emt 0:01:20]} 45. d6 {[%emt 0:03:53]} Kc3 {[%emt 0:01:06]} 46. Ra2 {[%emt 0:00:32]} Ra7 {[%emt 0:05:50]} 47. Bd1 {[%emt 0:03:00]} Kxc4 {[%emt 0:03:09]} 48. Ke4 {[%emt 0:01:36]} Ra5 {[%emt 0:00:17]} 49. f4 {[%emt 0:00:38]} exf4 {[%emt 0:00:44]} 50. Kxf4 {[%emt 0:00:12]} Rd5 {[%emt 0:00:56]} 51. Bh5 {[%emt 0:00:48]} Ne5 {[%emt 0:02:24]} 52. d7 {[%emt 0:04:33]} Ng6+ {[%emt 0:00:23]} 53. Ke4 {[%emt 0:03:36]} Rxd7 {[%emt 0:00:14]} 54. Bxg6 {[%emt 0:01:04]} fxg6 {[%emt 0:00:16]} 55. Ke5 {[%emt 0:00:06]} Rf7 {[%emt 0:00:37]} 56. Ke4 {[%emt 0:01:28]} Rf5 {[%emt 0:00:08]} 57. Ke3 {[%emt 0:00:05]} Kc3 {[%emt 0:00:07]} 58. Ke2 {[%emt 0:00:11]} Rxg5 {[%emt 0:00:06]} 59. Kd1 {[%emt 0:00:08]} Rg1+ {[%emt 0:00:22]} 60. Ke2 {[%emt 0:00:04]} Rc1 {[%emt 0:00:10]} 61. Ke3 {[%emt 0:00:27]} Rxc2 {[%emt 0:00:02]} 62. Ra1 {[%emt 0:00:11]} a2 {[%emt 0:00:11]} 63. Kf4 {[%emt 0:00:06]} b3 {[%emt 0:00:05]} 64. Ke3 {[%emt 0:00:07]} Kb2 {[%emt 0:00:06]} 65. Rg1 {[%emt 0:00:11]} a1=Q {[%emt 0:00:07]} 66. Rxa1 {[%emt 0:00:11]} Kxa1 {[%emt 0:00:04]} 67. Kd3 {[%emt 0:00:06]} Rc8 {[%emt 0:00:28]} 68. Kd2 {[%emt 0:00:09]} b2 {[%emt 0:00:02]} 69. Ke2 {[%emt 0:00:11]} b1=Q {[%emt 0:00:06]} 70. Kd2 {[%emt 0:00:06]} Qb3 {[%emt 0:00:13]} 71. Ke2 {[%emt 0:00:05]} Rc2+ {[%emt 0:00:02]} 72. Kd1 {[%emt 0:00:09]} Qb1# {[%emt 0:00:04]} 0-1

[Event "VI Sunway Sitges Open 2019"]
[Site "Sitges"]
[Date "2019.12.13"]
[Round "1.51"]
[White "Jimenez Ruano, Adrian"]
[Black "Rosh, Jain"]
[Result "1-0"]
[ECO "D32"]
[WhiteElo "2263"]
[BlackElo "1697"]
[Annotator "NA"]
[PlyCount "125"]
[EventDate "2019.12.13"]
[EventType "swiss"]
[EventCountry "ESP"]
[SourceTitle "playchess.com"]
[Source "ChessBase"]
[SourceQuality "1"]
[TimeControl "40/5400+30:1800+30"]

1. Nf3 {[%emt 0:00:00]} Nf6 {[%emt 0:00:00]} 2. c4 {[%emt 0:00:30]} e6 {[%emt 0:00:17]} 3. e3 {[%emt 0:00:22]} d5 {[%emt 0:00:50]} 4. Nc3 {[%emt 0:00:12]} Be7 {[%emt 0:00:49]} 5. Be2 {[%emt 0:01:04]} O-O {[%emt 0:01:06]} 6. O-O {[%emt 0:00:06]} c5 {[%emt 0:01:07]} 7. cxd5 {[%emt 0:00:09]} exd5 {[%emt 0:00:48]} 8. d4 {[%emt 0:00:05]} Nc6 {[%emt 0:02:06]} 9. dxc5 {[%emt 0:08:34]} Bxc5 {[%emt 0:00:36]} 10. b3 {[%emt 0:00:41]} Be6 {[%emt 0:09:05]} 11. Bb2 {[%emt 0:00:14]} Qe7 {[%emt 0:01:19]} 12. Nb5 {[%emt 0:06:07]} Rfd8 {[%emt 0:05:51]} 13. Nbd4 {[%emt 0:02:05]} Ba3 {[%emt 0:06:27]} 14. Qc1 {[%emt 0:01:43]} Bxb2 {[%emt 0:00:37]} 15. Qxb2 {[%emt 0:00:02]} Rac8 {[%emt 0:01:00]} 16. Nxc6 {[%emt 0:07:22]} bxc6 {[%emt 0:01:22]} 17. Ba6 {[%emt 0:00:39]} Rc7 {[%emt 0:03:37]} 18. Rac1 {[%emt 0:01:01]} c5 {[%emt 0:00:57]} 19. Qe5 {[%emt 0:08:54]} Qd6 {[%emt 0:04:34]} 20. Rfd1 {[%emt 0:05:18]} Qxe5 {[%emt 0:11:43]} 21. Nxe5 {[%emt 0:00:06]} Nd7 {[%emt 0:01:06]} 22. Nxd7 {[%emt 0:12:13]} Rdxd7 {[%emt 0:00:15]} 23. f3 {[%emt 0:01:00]} Kf8 {[%emt 0:03:08]} 24. Bb5 {[%emt 0:02:06]} Rd8 {[%emt 0:01:44]} 25. e4 {[%emt 0:01:19]} d4 {[%emt 0:01:14]} 26. Bc4 {[%emt 0:03:22]} Bxc4 {[%emt 0:04:09]} 27. Rxc4 {[%emt 0:00:07]} a5 {[%emt 0:00:30]} 28. Rdc1 {[%emt 0:03:22]} Rdc8 {[%emt 0:07:43]} 29. Kf2 {[%emt 0:00:02]} Ke7 {[%emt 0:00:59]} 30. Ra4 {[%emt 0:02:36]} Ra7 {[%emt 0:05:41]} 31. Rxd4 {[%emt 0:03:20]} cxd4 {[%emt 0:00:12]} 32. Rxc8 {[%emt 0:00:01]} Rb7 {[%emt 0:01:14]} 33. Rc4 {[%emt 0:00:53]} Rd7 {[%emt 0:03:22]} 34. Ke2 {[%emt 0:00:12]} Ke6 {[%emt 0:00:22]} 35. Kd3 {[%emt 0:00:08]} Ra7 {[%emt 0:02:14]} 36. Rxd4 {[%emt 0:01:01]} f6 {[%emt 0:00:44]} 37. Kc3 {[%emt 0:07:19]} Rc7+ {[%emt 0:00:31]} 38. Kb2 {[%emt 0:00:01]} Ra7 {[%emt 0:01:23]} 39. Ka3 {[%emt 0:00:39]} Rc7 {[%emt 0:00:11]} 40. Rc4 {[%emt 0:00:00]} Rd7 {[%emt 0:00:00]} 41. Rc2 {[%emt 0:02:53]} Rd4 {[%emt 0:00:59]} 42. Kb2 {[%emt 0:00:12]} Rd7 {[%emt 0:00:15]} 43. Rc6+ {[%emt 0:02:28]} Kf7 {[%emt 0:00:23]} 44. Kc2 {[%emt 0:00:21]} Kg6 {[%emt 0:01:09]} 45. Rc5 {[%emt 0:00:31]} Ra7 {[%emt 0:00:42]} 46. a4 {[%emt 0:01:31]} Kf7 {[%emt 0:00:17]} 47. Kc3 {[%emt 0:00:36]} Ke6 {[%emt 0:00:13]} 48. Rd5 {[%emt 0:03:52]} Rc7+ {[%emt 0:00:45]} 49. Kd3 {[%emt 0:00:41]} Rb7 {[%emt 0:00:18]} 50. Kc4 {[%emt 0:00:42]} Rc7+ {[%emt 0:00:27]} 51. Rc5 {[%emt 0:00:20]} Ra7 {[%emt 0:00:14]} 52. Kb5 {[%emt 0:16:47]} Rb7+ {[%emt 0:00:19]} 53. Kxa5 {[%emt 0:00:02]} Rxb3 {[%emt 0:00:12]} 54. Rb5 {[%emt 0:00:18]} Rc3 {[%emt 0:00:40]} 55. Kb6 {[%emt 0:01:22]} Rc2 {[%emt 0:00:13]} 56. a5 {[%emt 0:00:51]} Rxg2 {[%emt 0:00:23]} 57. a6 {[%emt 0:00:06]} Rxh2 {[%emt 0:00:19]} 58. a7 {[%emt 0:00:10]} Ra2 {[%emt 0:00:15]} 59. Ra5 {[%emt 0:00:10]} Rb2+ {[%emt 0:00:10]} 60. Ka6 {[%emt 0:00:33]} Rd2 {[%emt 0:00:43]} 61. a8=Q {[%emt 0:00:00]} Rd6+ {[%emt 0:00:13]} 62. Kb5 {[%emt 0:00:00]} h5 {[%emt 0:00:08]} 63. Qe8# {[%emt 0:00:10]} 1-0